Cogmind - Beta 13 @@@ ROGUE MODE // 2024.07.06 @ 14:11:04 Player: Pilow64 Result: Destroyed by S-10 Pest with Light Assault Rifle Performance ------------- Evolutions (0) 0 Regions Visited (1) 200 Robots Destroyed (11) 55 Value Destroyed (364) 364 Prototype IDs (0) 0 Alien Tech Used (0) 0 Bonus (0) 0 TOTAL SCORE: 619 Bonus ------- None Cogmind --------- Core Integrity 0/250 Matter 301/350 Energy 121/125 System Corruption 0% Temperature Cool (2) Movement Treading (320) Ox2 Location -10/Materials Parts ------- > --- POWER (1) -------- Light Ion Engine > --- PROPULSION (2) --- Light Treads Light Treads > --- UTILITY (2) ------ Huge Storage Unit Small Matter Pod > --- WEAPON (2) ------- Light Assault Rifle > --- INVENTORY (25) --- Wheel Compact Wheel Peak State ------------ > --- POWER ------------ Light Ion Engine > --- PROPULSION ------- Light Treads Light Treads > --- UTILITY ---------- Small Storage Unit Small Matter Pod > --- WEAPON ----------- Light Assault Rifle Light Assault Rifle > --- INVENTORY -------- Light Ion Engine Wheel Compact Wheel Light Assault Rifle [Rating: 7] Favorites ----------- Power Light Ion Engine Engine Light Ion Engine Propulsion Light Treads Treads Light Treads Wheel Compact Wheel Utility Small Matter Pod Storage Small Matter Pod Weapon Light Assault Rifle Ballistic Gun Light Assault Rifle Build | -11 -10 ------- Run | Yrd Mat Slots Evolved . | . . Power . | . . Propulsion . | . . Utility . | . . Weapon . | . . Parts Attached 15 | 6 9 Power 3 | 1 2 Engine 3 | 1 2 Core . | . . Reactor . | . . Propulsion 6 | 2 4 Treads 4 | 2 2 Leg . | . . Wheel 2 | . 2 Hover . | . . Flight . | . . Utility 3 | 1 2 Device . | . . Storage 3 | 1 2 Processor . | . . Hackware . | . . Protection . | . . Artifact . | . . Weapon 3 | 2 1 Energy Gun . | . . Energy Cannon . | . . Ballistic Gun 3 | 2 1 Ballistic Cannon . | . . Launcher . | . . Special Weapon . | . . Impact Weapon . | . . Slashing Weapon . | . . Piercing Weapon . | . . Special Melee Weapon . | . . Unidentified Prototypes . | . . Parts Lost 4 | . 4 Power 1 | . 1 Propulsion 1 | . 1 Utility . | . . Weapon 2 | . 2 Highest Loss Streak 4 | . 4 To Critical Strikes . | . . Average Slot Usage (%) 94 | . 94 Engine 13 | . 13 Treads 12 | . 12 Wheel 14 | . 14 Storage 25 | . 25 Ballistic Gun 26 | . 26 Naked Turns . | . . Heaviest Build 86 | 10 86 Greatest Support 40 | 40 40 Greatest Overweight (x) 5 | . 5 Average Overweight (x) 1 | . 2 Largest Inventory Capacity 25 | 8 25 Average Capacity 20 | 6 21 Most Carried 5 | 3 5 Average Carried 3 | 1 4 Final Capacity 25 | 8 25 Final Carried 3 | 3 2 Class Distribution -------------------- 100% | Mutant Dominant Class ---------------- Mutant | -10/Materials Resources | -11 -10 ----------- Run | Yrd Mat Matter Collected 438 | 260 178 Remotely . | . . Salvage Created 410 | . 410 Parts 24 | . 24 Haulers Intercepted . | . . Recyclers Shooed . | . . Parts Field Recycled . | . . Retrieved Matter . | . . Parts Self-Destructed . | . . Prevented . | . . Kills | -11 -10 ------- Run | Yrd Mat Combat Hostiles Destroyed 9 | . 9 Guns 9 | . 9 Classes Destroyed 2 | . 2 Watcher 2 | . 2 Grunt 9 | . 9 Best Kill Streak 2 | . 2 Combat Bots Only 2 | . 2 Max Kills in Single Turn 1 | . 1 Gunslinging . | . . Exploded . | . . Melee . | . . Uniques/NPCs Destroyed . | . . Combat | -11 -10 -------- Run | Yrd Mat Hostile Shots Fired 123 | . 123 Missed 43 | . 43 Damage Taken 877 | . 877 Core 252 | . 252 Absorbed by Shields . | . . Core Remaining (%) 100 | 100 . Volleys Fired 57 | . 57 Largest 2 | . 2 Hottest 40 | . 40 Shots Fired 105 | . 105 Gun 105 | . 105 Cannon . | . . Launcher . | . . Special . | . . Kinetic 105 | . 105 Thermal . | . . Explosive . | . . Electromagnetic . | . . Robot Hit Streak 12 | . 12 Robot Miss Streak 3 | . 3 Penetration Max . | . . Secondary Targets . | . . Shots Hit Robots 75 | . 75 Core Hits 27 | . 27 Critical Kills . | . . Critical Parts Destroyed . | . . Critical Strikes . | . . Melee Attacks . | . . Impact . | . . Slashing . | . . Piercing . | . . Sneak Attacks . | . . Combat Hostiles . | . . Follow-up Attacks . | . . Damage Inflicted 650 | . 650 Guns 650 | . 650 Cannons . | . . Explosions . | . . Melee . | . . Ramming . | . . Kinetic 650 | . 650 Thermal . | . . Explosive . | . . Electromagnetic . | . . Impact . | . . Slashing . | . . Piercing . | . . Highest Corruption . | . . Average Corruption . | . . Corruption Purged . | . . Corruption Blocked . | . . Overload Shots . | . . Overflow Damage . | . . Projectiles . | . . Explosions . | . . Melee . | . . Knockbacks . | . . Impact . | . . Kinetic . | . . Secondary . | . . Self-Inflicted Damage . | . . Shots . | . . Rammed . | . . Targets Rammed . | . . Kicked . | . . Crushed . | . . Highest Temperature 44 | . 44 Average Temperature 12 | . 12 Received Heat Transfer 387 | . 387 Siege Activations . | . . Robots Corrupted . | . . Combat Hostiles . | . . Parts Fried . | . . Impact Corruptions . | . . Robots Melted . | . . Combat Hostiles . | . . Parts Melted . | . . Heat Transferred . | . . Parts Sabotaged . | . . Parts Stolen . | . . Parts Stripped . | . . Power Chain Reactions . | . . Alert | -11 -10 ------- Run | Yrd Mat Peak Influence 170 | . 170 Initial . | . . Average 57 | . 63 Maximum Alert Level . | . . Low Security (%) 100 | 100 100 Level 1 . | . . Level 2 . | . . Level 3 . | . . Level 4 . | . . Level 5 . | . . High Security . | . . Max Security . | . . Squads Dispatched 2 | . 2 Investigation 1 | . 1 Extermination . | . . Reinforcement 1 | . 1 Assault . | . . Garrison . | . . Intercept . | . . Searches Triggered . | . . Construction Impeded . | . . Haulers Reinforced . | . . Active Scanning Responses . | . . Cargo Convoy Interrupts . | . . Stealth | -11 -10 --------- Run | Yrd Mat Distress Signals . | . . Communications Jammed . | . . Distress Signals . | . . Times Spotted 17 | . 17 Peak Tracking Total 3 | . 3 Tactical Retreats 1 | . 1 Traps | -11 -10 ------- Run | Yrd Mat Traps Triggered . | . . Indirectly . | . . Trap Hack Attempts . | . . Triggered . | . . Disarmed . | . . Reprogrammed . | . . Reused . | . . Traps Extracted . | . . Installed . | . . Triggered . | . . Machines | -11 -10 ---------- Run | Yrd Mat Machines Disabled . | . . Max in Single Turn . | . . Machines Repaired . | . . Machines Dismantled . | . . Machines Sabotaged . | . . Overloaded Fab Kills . | . . Hacking | -11 -10 --------- Run | Yrd Mat Machines Accessed 2 | . 2 Terminals 2 | . 2 Fabricators . | . . Repair Stations . | . . Recycling Units . | . . Scanalyzers . | . . Garrison Access . | . . Total Hacks 8 | . 8 Successful 4 | . 4 Failed 4 | . 4 Catastrophic 1 | . 1 Database Lockouts . | . . Manual . | . . Terminals 8 | . 8 Fabricators . | . . Repair Stations . | . . Recycling Units . | . . Scanalyzers . | . . Garrison Access . | . . Terminal Hacks 4 | . 4 Record 2 | . 2 Reinforcement Status 1 | . 1 Assault Status 1 | . 1 Fabricator Hacks . | . . Repair Station Hacks . | . . Recycling Unit Hacks . | . . Scanalyzer . | . . Garrison Access Hacks . | . . Unauthorized Hacks . | . . Terminals . | . . Fabricators . | . . Repair Stations . | . . Recycling Units . | . . Scanalyzers . | . . Garrison Access . | . . Data Cores Recovered . | . . Used . | . . Hacking Detections 2 | . 2 Full Trace Events 2 | . 2 Feedback Events . | . . Feedback Blocked . | . . Robot Schematics Acquired . | . . Robots Built . | . . Authchips . | . . Time . | . . Total Robot Build Rating . | . . Part Schematics Acquired . | . . Parts Built . | . . Authchips . | . . Time . | . . Total Part Build Rating . | . . Parts Repaired . | . . Time . | . . Parts Recycled . | . . Recycled Matter . | . . Retrieved Matter . | . . Retrieved Components . | . . Parts Scanalyzed . | . . Part Schematics Acquired . | . . Parts Damaged . | . . Bothacking | -11 -10 ------------ Run | Yrd Mat Used RIF Installer . | . . Robots Hacked . | . . Non-combat . | . . Combat . | . . Robot Hacks Applied . | . . Relay Couplers Released . | . . Fabnet Peak Effective % . | . . Robots Rewired . | . . Allies Hacked . | . . Hacks Repelled . | . . Allies | -11 -10 -------- Run | Yrd Mat Total Allies . | . . Largest Group . | . . Highest-Rated Group . | . . Highest-Rated Ally . | . . Total Orders . | . . Ally Attacks . | . . Total Damage . | . . Kills . | . . Allies Corrupted . | . . Allies Melted . | . . Intel | -11 -10 ------- Run | Yrd Mat Robot Analysis Total . | . . Derelict Logs Recovered . | . . Drone Launches . | . . Drone Recoveries . | . . Exploration | -11 -10 ------------- Run | Yrd Mat Turns Passed 827 | 78 749 Spaces Moved 402 | 42 360 Core 3 | 3 . Treads 176 | 39 137 Legs . | . . Wheels 223 | . 223 Hover . | . . Flight . | . . Fastest Speed 50 | 50 135 Average Speed 163 | 152 164 Slowest Speed 320 | 160 320 Overloaded Moves . | . . Propulsion Burnouts . | . . Robots Hopped . | . . Cave-ins Triggered . | . . Exploration Rate (%) 33 | 3 63 Regions Visited 1 Branch Regions . Pre-discovered Areas . | . . Known Exits Taken . | . . Unknown Exits Taken 1 | 1 . Scrap Searched . | . . Spaces Dug . | . . Terrain Destroyed . | . . Melee . | . . Projectile . | . . AOE . | . . Terrain Rammed . | . . Walls Destroyed . | . . Machines Disabled . | . . Actions | -11 -10 --------- Run | Yrd Mat Total 490 | 56 434 Wait 1 | . 1 Move 401 | 41 360 Hop . | . . Pick Up 14 | 9 5 Fast Attach . | . . Attach 10 | 6 4 Detach . | . . Swap 5 | . 5 Drop 2 | . 2 Fire 57 | . 57 Melee . | . . Ram . | . . Kick . | . . Crush . | . . Escape Stasis . | . . Rewire . | . . Trap . | . . Miscellaneous . | . . Route ------- -11/Scrapyard -10/Materials (discovered 2 exits: [*Mat x2]) History --------- Turn | Location | Event 19 | -11/Scrapyard | Discovered new exit (range 15) 79 | -11/Scrapyard | Entered Materials 317 | -10/Materials | Build established: Mutant 344 | -10/Materials | Discovered new exit (range 15) 654 | -10/Materials | Discovered new exit (range 5) 734 | -10/Materials | Core integrity fell below 50% 754 | -10/Materials | Core integrity fell below 20% 782 | -10/Materials | Lost 4 parts (1p1n2w) 828 | -10/Materials | Destroyed by S-10 Pest with Light Assault Rifle Last Messages --------------- Retrieving latest reported positions... No active reinforcement squads found. >>Enumerate(Assaults) Retrieving latest reported positions... No active assault squads found. >>Query(Scanalyzer) Comprehensive suite of scanning and analysis tools for diagnosing faulty prototypes, examining the properties of self-developed [Derelict] components, and reverse engineering technology recovered from the surface battle site. Capable of producing schematics for components scanned, though multiple scans may be required and the deconstruction process may render the component itself useless. Advanced scanalyzers are equipped with a wider array of devices for more quickly and safely analyzing esoteric technologies. 00743_ Wheel destroyed. 00749_ Lgt. Ion Engine destroyed. 00751_ Lgt. Assault Rifle destroyed. 00755_ G-47 Trooper destroyed. 00764_ G-34 Mercenary destroyed. 00796_ R-06 Scavenger collects Imp. Heat Sink. Map ----- +----------------------------------------------------+ | ##### ########### * + """ # | | ?????/##+## #?????????# ######## # """ # | | ?????? ???????#?????????# #??????# #?? # | | ?????? ????????????????# #??????# #???? # | | ???????" ?? ??????????# ######## #?????? | | ???????" ?# ??????????# # # ####??? | | ????????? # ??????????# # + ##?? | | ??????????# ??????????# # """ #### T#?? | | ??????????# ??????????+ + """ #??# ##?? | | ??????????# ??????????# # """ #??# #??? | | ??????????# ??????????# # #??# #??? | | ??????????# #?????????# ########??# #??? | | ??????????# #?????????# #?????????# #??? | | ??????????# ########### +?????????# #??? | | ??????????# # T # #?????????# #??? | | ??????????# # + #?????????# #??? | | ??????????# # # ##??????????# #??? | | ??????????# % # # #???????????# #??? | | ????? """ #!==# """ """ # #???????????# #??? | | ????? """ +% + """ """ # #??????????##+###? | | ? #[ # """ """ # #??????????# #? | | ??????????# # + #??????????# #? | | ??????????# ###########s#??????????#/= #? | | ??????????# #?????????# ##### #????#/! [#? | | ??????????# #?????????# #????#/! #? | | ??????????# #????######@#####+####?# #? | | ??????????# #????# # # #?# = #? | | ?????????? = #????# + # #?# %= #? | | ?????????? ?????# # #? #?# [ #? | | ?????????? ?????# # # """ ####+###? | | ?????????""" ?????# + #""""" ## %! #? | | ?????????""" ?????# # #""""" ## #? | | ???????????" ?????# # #""""" + #? | | ???????????? ?????# # # """ ## #? | | ???????????? ?????# # # ## #? | | ???????????????????###### #####+####### ###? | | ????????????????????????# #??? | | ????????????????????????# #??? | | ????????????????????????# #??? | | ??????????????????????###+#+## < ### #??? | | ??????????????????????# # #??? #??? | | ??????????????????????# """#####???? #??? | | ??????????????????????# """#????????###??? | | ??????????????????????# """#?????????????? | | ??????????????????????# #?????????????? | | ??????????????????????# #?????????????? | | ???????????????????????#######?????????????? | | | | | | | +----------------------------------------------------+ Best States ------------- Heat Dissipation 25 Energy Generation 10 Energy Capacity 125 Matter Stores 350 Matter Capacity 350 Sight Range 16 Terrain Scan Density 10 Evasion (%) 40 Recoil Reduction 2 Item Schematics ----------------- None Robot Schematics ------------------ None Fabricated ------------ Nothing Alien Tech Used ----------------- None Achievements -------------- None Challenges ------------ None Game ------ Seed IntegratedBurstCloak Manual? 0 Play Time 00:11:32 Cumulative 3.6 hours Start 2024.07.06 @ 14:02:26 End 2024.07.06 @ 14:11:04 Sessions 1 Manual Loads 0 Difficulty Rogue Special Mode None Game No. 6 Rogue 6 Adventurer 0 Explorer 0 Win Type - Total 0 Types 0/0/0/0/0/0/0/0/0 Lore% 5 Gallery% 9 Achievement% 10 Wizard Run 0 Options --------- Layout 0 ASCII 0 Keyboard 0 Movement Mouse Keybinds 0 Fullscreen 1 Font 18/SmallcapsGlow Map View 38x25 Zoom Use 90% Tactical HUD 1 Map Filters NONE Filters NONE Steam 1 RUN: a8e39b24-5712-4119-bf1f-ae4b897db1a0